bitfinex/quotes_SOLUSD_20250206
["timestamp","ask_amount","ask_price","bid_price","bid_amount"]
[1738816448777,9.80146837,201.04,201.02,7.2718]
[1738816449041,17.14624996,201.11,201.04,1.0]
[1738816449042,9.80146837,201.06,201.04,1.0]
[1738816449724,9.80146837,201.05,201.04,1.0]
[1738816450643,9.80840542,201.05,201.04,1.0]
[1738816451251,9.80840542,201.07,201.04,1.0]
[1738816451428,15.32349153,201.07,201.04,1.0]
[1738816451618,15.32349153,201.06,201.04,1.0]
[1738816452415,15.32349153,201.05,201.02,141.8718]
[1738816452633,15.32349153,201.04,201.02,7.2718]
[1738816453449,15.32349153,201.03,201.02,1.0]
[1738816453640,15.32349153,201.03,201.01,82.0]
[1738816454042,15.32349153,201.03,201.02,1.0]
[1738816454648,19.80039153,201.03,201.02,1.0]
[1738816454830,15.32349153,201.03,201.02,1.0]
[1738816455246,4.4766,201.05,201.02,1.0]
[1738816455247,15.32349153,201.04,201.02,1.0]
[1738816456463,15.32349153,201.05,201.02,1.0]
[1738816456628,15.32349153,201.05,201.04,1.0]
[1738816458658,15.32349153,201.06,201.04,1.0]
[1738816459662,19.79949153,201.08,201.04,1.0]
[1738816459957,19.79949153,201.08,201.06,1.0]
[1738816460758,15.32349153,201.07,201.06,1.0]
[1738816461239,15.32349153,201.08,201.06,1.0]
[1738816461441,39.79879153,201.1,201.08,1.0]
[1738816461626,19.79879153,201.1,201.08,1.0]
[1738816462557,19.86159153,201.12,201.1,1.0]
[1738816463130,15.32349153,201.11,201.1,1.0]
[1738816464458,15.32349153,201.11,201.08,1.0]
[1738816464662,15.32349153,201.1,201.08,1.0]
[1738816465149,15.32349153,201.09,201.06,1.0]
[1738816465868,19.79899153,201.1,201.06,1.0]
[1738816466463,4.4755,201.1,201.09,1.0]
[1738816467355,19.79899153,201.1,201.09,1.0]
[1738816470080,15.32349153,201.11,201.09,1.39399941]
[1738816470365,4.538,201.12,201.11,1.0]
[1738816470366,4.5379,201.12,201.11,1.0]
[1738816471048,4.5379,201.12,201.09,134.99399941]
[1738816471049,19.86139153,201.12,201.09,135.6]
[1738816471244,15.32349153,201.1,201.09,134.6]
[1738816472372,19.79879153,201.1,201.09,134.6]
[1738816472747,4.4753,201.1,201.09,134.6]
[1738816473475,9.80423838,201.11,201.09,134.6]
[1738816474067,9.80423838,201.11,201.09,135.6]
[1738816474577,0.063,201.12,201.09,135.6]
[1738816474872,0.063,201.12,201.09,1.0]
[1738816475071,0.063,201.12,201.1,0.39399941]
[1738816475376,0.063,201.12,201.11,1.0]
[1738816478467,0.063,201.12,201.11,1.39399941]
[1738816479084,0.063,201.12,201.11,14.80584794]
[1738816480876,0.063,201.12,201.11,149.40584794]
[1738816482192,0.063,201.12,201.11,24.61008632]
[1738816483590,0.063,201.12,201.11,14.80584794]
[1738816486793,0.063,201.12,201.11,149.40584794]
[1738816487094,9.86723838,201.12,201.11,135.6]
[1738816487866,0.063,201.12,201.11,135.6]
[1738816490501,0.063,201.12,201.11,1.0]
[1738816491487,0.063,201.12,201.11,149.40584794]
[1738816494897,0.063,201.12,201.11,149.01184853]
[1738816495102,0.063,201.12,201.11,149.40584794]
[1738816501712,0.063,201.12,201.11,231.40584794]
[1738816505429,0.063,201.12,201.11,217.99399941]
[1738816505631,0.063,201.12,201.11,1.0]
[1738816505632,9.86723838,201.12,201.11,1.0]
[1738816506300,9.86723838,201.12,201.09,1.0]
[1738816507118,4.4751,201.11,201.09,1.0]
[1738816511836,0.063,201.12,201.11,1.39399941]
[1738816512300,0.063,201.12,201.11,1.0]
[1738816513735,4.5379,201.12,201.11,1.0]
[1738816514427,0.063,201.12,201.11,1.0]
[1738816516036,0.063,201.12,201.11,231.01184853]
[1738816516337,0.063,201.12,201.11,246.18248632]
[1738816516918,0.063,201.12,201.11,241.21008632]
[1738816518402,0.063,201.12,201.11,231.40584794]
[1738816519806,0.063,201.12,201.11,241.21008632]
[1738816522027,0.063,201.12,201.11,231.40584794]
[1738816524801,0.063,201.12,201.11,231.01184853]
[1738816525009,9.86723838,201.12,201.11,217.6]
[1738816525302,9.86723838,201.12,201.09,1.0]
[1738816525710,9.80423838,201.11,201.09,1.0]
[1738816526432,9.80423838,201.1,201.09,1.0]
[1738816526808,14.27953838,201.1,201.09,1.0]
[1738816527720,9.80423838,201.11,201.09,1.0]
[1738816528328,29.86723838,201.12,201.11,1.0]
[1738816529324,20.063,201.12,201.11,1.0]
[1738816529638,29.86723838,201.12,201.09,1.0]
[1738816529840,14.27943838,201.11,201.09,1.0]
[1738816532133,9.80423838,201.1,201.07,217.6]
[1738816532448,9.80423838,201.1,201.07,1.0]
[1738816533042,14.27983838,201.09,201.07,1.0]
[1738816533342,14.27983838,201.09,201.05,1.0]
[1738816533343,9.80423838,201.08,201.05,1.0]
[1738816533545,9.80423838,201.06,201.05,1.0]
[1738816533715,9.80423838,201.06,201.03,1.0]
[1738816534336,20.0,201.08,201.01,135.6]
[1738816534337,9.80423838,201.04,201.01,135.6]
[1738816534522,9.80423838,201.04,201.01,1.0]
[1738816534932,29.80423838,201.06,201.03,1.0]
[1738816536348,4.4764,201.05,201.03,1.0]
[1738816536743,14.28043838,201.07,201.05,1.0]
[1738816538846,4.4762,201.07,201.05,1.0]
[1738816544527,14.27933838,201.11,201.08,1.0]
[1738816544850,20.0,201.09,201.08,1.0]
[1738816546246,24.4756,201.09,201.08,1.0]
[1738816547754,14.27983838,201.09,201.08,1.0]
[1738816551444,14.27983838,201.09,201.04,135.6]
[1738816551748,9.80423838,201.08,201.06,1.0]
[1738816553251,4.476,201.07,201.06,1.0]
[1738816553655,4.476,201.07,201.04,135.6]
[1738816555158,4.476,201.07,201.04,1.0]
[1738816558881,14.34233838,201.11,201.08,1.0]
[1738816559067,20.0,201.09,201.08,1.0]
[1738816559437,29.80423838,201.09,201.06,1.0]
[1738816560260,29.86723838,201.09,201.06,1.0]
[1738816561143,4.4758,201.08,201.06,1.0]
[1738816563662,4.4758,201.08,201.04,1.0]
[1738816563877,9.80423838,201.06,201.02,1.0]
[1738816564159,9.80423838,201.06,201.04,1.0]
[1738816564545,25.46953838,201.08,201.04,1.0]
[1738816564856,14.28003838,201.08,201.04,1.0]
[1738816565272,14.28003838,201.08,201.06,1.0]
[1738816565568,14.28003838,201.08,201.04,1.0]
[1738816567065,9.80423838,201.07,201.04,1.0]
[1738816567456,4.4762,201.06,201.04,1.0]
[1738816567871,0.12549,201.04,201.0,1.0001]
[1738816568176,9.80423838,201.02,201.0,1.0001]
[1738816569073,4.4773,201.01,201.0,1.0001]
[1738816574480,24.4773,201.01,201.0,1.0001]
[1738816574985,4.4767,201.04,201.0,1.0001]
[1738816575283,24.4767,201.04,201.03,1.0]
[1738816577480,4.4767,201.04,201.03,1.39399941]
[1738816578170,4.476,201.07,201.06,1.0]
[1738816578981,0.063,201.09,201.06,1.39399941]
[1738816579187,0.063,201.09,201.08,1.39399941]
[1738816579679,0.063,201.09,201.08,1.0]
[1738816580975,0.063,201.09,201.08,135.6]
[1738816581171,0.063,201.09,201.08,24.21608691]
[1738816584786,0.063,201.09,201.08,158.81608691]
[1738816585981,0.063,201.09,201.08,149.01184853]
[1738816587893,0.063,201.09,201.08,135.6]
[1738816590692,0.063,201.09,201.08,1.0]
[1738816591077,0.063,201.09,201.08,14.41184853]
[1738816591696,0.063,201.09,201.08,1.0]
[1738816596591,0.063,201.09,201.08,135.6]
[1738816601615,0.063,201.09,201.08,113.17485691]
[1738816601776,0.063,201.11,201.1,33.53733853]
[1738816602095,0.063,201.11,201.1,44.48119104]
[1738816602797,0.063,201.11,201.1,45.48119104]
[1738816603392,0.063,201.11,201.1,50.45379104]
[1738816604991,0.063,201.12,201.11,13.78831853]
[1738816605173,0.063,201.12,201.11,230.38831853]
[1738816605374,0.063,201.12,201.11,240.19255691]
[1738816606799,0.063,201.12,201.11,239.94157691]
[1738816606999,0.063,201.12,201.11,239.81608691]
[1738816609105,0.063,201.12,201.11,230.01184853]
[1738816609790,0.063,201.12,201.11,216.6]
[1738816613201,0.063,201.12,201.1,1.39399941]
[1738816613202,9.86723838,201.12,201.1,1.39399941]
[1738816614213,4.4751,201.11,201.1,1.39399941]
[1738816616111,0.063,201.12,201.1,1.39399941]
[1738816616275,4.5379,201.12,201.1,1.39399941]
[1738816617908,4.5379,201.12,201.11,0.39399941]
[1738816618590,0.063,201.12,201.11,0.39399941]
[1738816621081,0.063,201.12,201.11,10.19823779]
[1738816622019,0.063,201.12,201.11,0.39399941]
[1738816632300,0.063,201.12,201.11,0.42399941]
[1738816638621,0.063,201.12,201.11,13.83584794]
[1738816638926,0.063,201.12,201.11,230.43584794]
[1738816639120,0.063,201.12,201.11,235.40824794]
[1738816640105,0.063,201.12,201.11,230.43584794]
[1738816641116,0.063,201.12,201.11,240.24008632]
[1738816644125,0.063,201.12,201.11,230.43584794]
[1738816644325,0.063,201.12,201.11,217.02399941]
[1738816644508,0.063,201.12,201.11,0.42399941]
[1738816645021,4.5379,201.12,201.11,0.42399941]
[1738816645707,0.063,201.12,201.11,0.42399941]
[1738816647211,0.063,201.12,201.11,13.83584794]
[1738816649213,0.063,201.12,201.11,240.24008632]
[1738816662916,0.063,201.12,201.11,245.33797632]
[1738816665734,0.063,201.12,201.11,245.58895632]
[1738816666225,0.063,201.12,201.11,246.58895632]
[1738816672054,0.063,201.12,201.11,252.80244632]
[1738816675150,0.063,201.12,201.11,267.73244632]
[1738816675356,0.063,201.12,201.11,251.67695632]
[1738816675558,0.063,201.12,201.11,252.67695632]
[1738816676055,0.063,201.12,201.11,240.24008632]
[1738816676548,0.063,201.12,201.11,240.36557632]
[1738816682226,0.063,201.12,201.11,245.33797632]
[1738816683028,0.063,201.12,201.11,240.36557632]
[1738816686355,0.063,201.12,201.11,245.33797632]
[1738816686530,0.063,201.12,201.11,246.58895632]
[1738816688449,0.063,201.12,201.11,247.71444632]
[1738816688754,0.063,201.22,201.21,14.80584794]
[1738816689060,7.81976157,201.24,201.23,21.64497941]
[1738816689361,46.4525317,201.27,201.26,0.12549]
[1738816689553,46.4525317,201.27,201.26,230.13733853]
[1738816689859,46.4525317,201.27,201.26,240.06706691]
[1738816690063,46.4525317,201.27,201.26,245.03566691]
[1738816690735,46.4525317,201.27,201.26,557.03566691]
[1738816693261,0.063,201.3,201.26,557.03566691]
[1738816693439,0.063,201.3,201.28,23.21608691]
[1738816693764,0.063,201.3,201.28,23.61008632]
[1738816694561,0.063,201.3,201.28,24.98655632]
[1738816694765,0.063,201.3,201.28,241.58655632]
[1738816694941,0.063,201.3,201.28,242.58655632]
[1738816695562,0.063,201.3,201.29,19.88170853]
[1738816695860,0.063,201.32,201.31,14.66282853]
[1738816696054,0.063,201.32,201.31,241.81175656]
[1738816696255,0.063,201.33,201.32,15.05682794]
[1738816696467,0.063,201.33,201.32,24.86106632]
[1738816696653,0.063,201.33,201.32,342.82826632]
[1738816697745,0.063,201.33,201.32,343.07924632]
[1738816697965,0.03,201.36,201.35,2.89595941]
[1738816698160,0.063,201.43,201.42,14.80584794]
[1738816698360,0.063,201.43,201.42,241.21008632]
[1738816700369,0.063,201.43,201.42,217.99399941]
[1738816700664,0.063,201.43,201.42,83.0]
[1738816703781,9.86723838,201.43,201.42,83.0]
[1738816706459,0.063,201.43,201.42,83.39399941]
[1738816706663,0.063,201.43,201.42,107.35467248]
[1738816706851,0.063,201.43,201.42,106.61008632]
[1738816708184,0.063,201.43,201.42,241.46106632]
[1738816709275,0.063,201.43,201.42,241.21008632]
[1738816711871,0.063,201.43,201.42,231.40584794]
[1738816714759,0.063,201.43,201.42,217.99399941]
[1738816715866,9.86723838,201.43,201.42,82.0]
[1738816716578,9.86723838,201.43,201.4,1.39399941]
[1738816716579,11.46543838,201.43,201.4,0.39399941]
[1738816716776,9.80423838,201.41,201.4,0.39399941]
[1738816717778,34.27243838,201.42,201.4,1.39399941]
[1738816718076,4.4682,201.42,201.4,1.39399941]
[1738816718467,4.4682,201.42,201.4,11.19823779]
[1738816718873,4.4682,201.42,201.4,1.39399941]
[1738816720361,14.27243838,201.42,201.4,1.39399941]
[1738816723082,4.4682,201.42,201.4,1.39399941]
[1738816725584,4.4682,201.42,201.4,0.39399941]
[1738816725772,9.80423838,201.41,201.4,0.39399941]
[1738816725973,9.80423838,201.41,201.4,9.941e-05]
[1738816727377,25.44383838,201.41,201.36,83.03]
[1738816727686,9.80423838,201.4,201.36,1.03]
[1738816728774,4.4689,201.39,201.38,1.0]
[1738816731482,4.4687,201.4,201.38,1.0]
[1738816731787,4.4687,201.4,201.36,1.03]
[1738816732291,9.80423838,201.38,201.36,0.03]
[1738816732586,9.80423838,201.38,201.36,1.03]
[1738816732790,9.80423838,201.39,201.36,1.03]
[1738816732976,9.80423838,201.39,201.36,0.03]
[1738816733177,4.4691,201.38,201.36,0.03]
[1738816733380,14.27333838,201.38,201.36,0.03]
[1738816733585,9.80423838,201.37,201.36,0.03]
[1738816733883,9.92972838,201.37,201.32,1.03]
[1738816734076,9.80423838,201.34,201.32,1.03]
[1738816734277,9.80423838,201.35,201.32,1.03]
[1738816735177,4.47,201.34,201.32,1.03]
[1738816735386,14.27423838,201.34,201.32,1.03]
[1738816736596,29.92972838,201.33,201.32,0.0001]
[1738816736796,30.68148775,201.33,201.32,0.0001]
[1738816736982,30.80697775,201.33,201.32,0.0001]
[1738816737775,30.68148775,201.33,201.32,0.0001]
[1738816739906,30.80697775,201.33,201.32,0.0001]
[1738816740194,30.55599775,201.33,201.32,0.0001]
[1738816740398,29.80423838,201.33,201.32,0.0001]
[1738816741703,30.18070838,201.33,201.32,0.0001]
[1738816742197,30.05521838,201.33,201.32,0.0001]
[1738816744883,34.52541838,201.33,201.32,0.0001]
[1738816746922,34.39992838,201.33,201.32,0.0001]
[1738816747087,4.4702,201.33,201.32,0.0001]
[1738816747907,4.4702,201.33,201.32,1.0001]
[1738816749023,14.27443838,201.33,201.32,1.0001]
[1738816749315,14.27443838,201.33,201.32,0.0001]
[1738816749487,14.39992838,201.33,201.32,0.0001]
[1738816750501,14.52541838,201.33,201.32,0.0001]
[1738816751095,14.58841838,201.33,201.32,0.0001]
[1738816752404,15.58831897,201.33,201.32,0.0001]
[1738816752603,10.05521838,201.29,201.22,0.31888677]
[1738816752787,9.80423838,201.23,201.2,0.31888677]
[1738816752987,9.80423838,201.25,201.24,0.31888677]
[1738816753207,9.80423838,201.26,201.24,0.31888677]
[1738816754017,4.4716,201.27,201.26,0.31888677]
[1738816754185,9.80423838,201.29,201.26,0.31888677]
[1738816754512,4.4713,201.29,201.28,0.31888677]
[1738816756715,9.80423838,201.3,201.28,0.31888677]
[1738816756716,9.78520719,201.3,201.28,0.31888677]
[1738816757496,15.28937739,201.3,201.28,0.31888677]
[1738816758709,4.4704,201.32,201.3,0.31888677]
[1738816759418,0.063,201.33,201.32,0.31888677]
[1738816761610,15.35237739,201.33,201.3,0.31888677]
[1738816761815,15.35237739,201.33,201.32,0.31888677]
[1738816762015,0.063,201.33,201.32,0.31888677]
[1738816762813,4.5332,201.33,201.3,0.31888677]
[1738816763689,19.82257739,201.33,201.3,0.31888677]
[1738816763894,15.28937739,201.32,201.3,0.31888677]
[1738816764094,19.82257739,201.33,201.3,0.31888677]
[1738816765996,15.28937739,201.32,201.3,0.31888677]
[1738816766719,15.28937739,201.31,201.3,0.31888677]
[1738816768418,19.76007739,201.31,201.3,0.31888677]
[1738816769427,15.28937739,201.32,201.3,0.31888677]
[1738816771816,4.4707,201.31,201.3,0.31888677]
[1738816776124,19.76007739,201.31,201.28,0.34888677]
[1738816778715,15.2887685,201.31,201.28,0.34888677]
[1738816778911,9.78480981,201.31,201.28,0.34888677]
[1738816780233,4.4709,201.3,201.28,0.34888677]
[1738816780407,9.78480981,201.29,201.28,0.34888677]
[1738816780608,9.78480981,201.29,201.28,0.03]
[1738816781931,14.25590981,201.29,201.28,0.03]
[1738816785307,14.50688981,201.29,201.28,0.03]
[1738816785815,14.25590981,201.29,201.28,0.03]
[1738816786015,4.4711,201.29,201.28,0.03]
[1738816789136,29.78480981,201.3,201.28,0.03]
[1738816789915,9.78480981,201.29,201.28,0.03]
[1738816790935,29.78480981,201.3,201.28,0.03]
[1738816791239,4.4711,201.29,201.28,0.03]
[1738816799242,4.5341,201.29,201.28,0.03]
[1738816802946,0.063,201.29,201.28,9.81480981]
[1738816803129,0.063,201.29,201.28,23.22665834]
[1738816805445,0.063,201.29,201.28,0.03]
[1738816819759,0.063,201.29,201.28,82.03]
[1738816822031,9.84780981,201.29,201.28,82.03]
[1738816822959,14.31890981,201.29,201.28,82.03]
[1738816825561,14.31890981,201.29,201.28,0.03]
[1738816829174,0.063,201.29,201.28,0.03]
[1738816833485,0.063,201.29,201.28,239.82665834]
[1738816835605,0.063,201.29,201.28,230.04184853]
[1738816837085,0.063,201.29,201.28,239.82665834]
[1738816837591,0.063,201.29,201.28,105.22665834]
[1738816837985,0.063,201.29,201.28,95.44184853]
[1738816841195,0.063,201.29,201.28,105.22665834]
[1738816843089,0.063,201.29,201.28,240.07763834]
[1738816843291,0.063,201.29,201.28,245.04583834]
[1738816843996,0.063,201.29,201.28,251.12923834]
[1738816844696,0.063,201.29,201.28,252.25472834]
[1738816844898,0.063,201.29,201.28,253.38021834]
[1738816845191,0.063,201.29,201.28,254.92721834]
[1738816845981,0.063,201.29,201.28,253.92721834]
[1738816847797,0.063,201.29,201.28,253.67623834]
[1738816854603,0.063,201.29,201.28,253.42525834]
[1738816860904,0.063,201.29,201.28,251.87825834]
[1738816861112,0.063,201.29,201.28,246.91005834]
[1738816861703,0.063,201.29,201.28,239.82665834]
[1738816862013,0.063,201.29,201.28,216.63]
[1738816862198,0.063,201.29,201.28,226.41480981]
[1738816863210,0.063,201.29,201.28,239.82665834]
[1738816864213,0.063,201.29,201.28,244.79485834]
[1738816869613,0.063,201.29,201.28,245.04583834]
[1738816870016,0.063,201.29,201.28,244.7323559]
[1738816871713,0.063,201.29,201.28,244.4813759]
[1738816872015,0.063,201.29,201.28,239.5131759]
[1738816873288,0.063,201.29,201.28,244.4813759]
[1738816873488,0.063,201.29,201.28,244.7323559]
[1738816873920,0.063,201.29,201.28,253.1309359]
[1738816884935,0.063,201.29,201.28,565.1309359]
[1738816887934,0.063,201.29,201.28,253.1309359]
[1738816890214,0.063,201.29,201.28,252.1309359]
[1738816891239,0.063,201.29,201.28,239.7641559]
[1738816891430,0.063,201.29,201.28,244.7323559]
[1738816891631,0.063,201.29,201.28,245.9833359]
[1738816892140,0.063,201.32,201.31,22.56986677]
[1738816892316,0.063,201.32,201.31,57.7732496]
[1738816892522,0.063,201.33,201.32,13.78831853]
[1738816892720,0.063,201.41,201.4,0.31888677]
[1738816892925,0.063,201.41,201.4,240.17853267]
[1738816894025,0.063,201.41,201.4,245.14373267]
[1738816895134,0.063,201.41,201.4,283.15453215]
[1738816896037,0.063,201.41,201.4,245.26922267]
[1738816896241,0.063,201.41,201.4,283.15453215]
[1738816897452,0.063,201.43,201.42,1.31888677]
[1738816897747,0.063,201.43,201.42,246.7620924]
[1738816897930,0.063,201.43,201.42,246.01774267]
[1738816900947,0.063,201.43,201.42,239.80206267]
[1738816903632,0.063,201.43,201.42,226.39021414]
[1738816905662,0.063,201.43,201.42,82.31888677]
[1738816908245,0.063,201.43,201.42,91.79021414]
[1738816910156,0.063,201.43,201.42,105.20206267]
[1738816911067,0.063,201.43,201.42,91.79021414]
[1738816917672,0.063,201.43,201.42,226.39021414]
[1738816919896,0.063,201.43,201.42,216.91888677]
[1738816920490,0.063,201.43,201.42,216.6]
[1738816921096,4.531,201.43,201.42,216.6]
[1738816921274,4.531,201.43,201.42,216.91888677]
[1738816923502,4.531,201.43,201.42,0.31888677]
[1738816927002,4.531,201.43,201.4,0.31888677]
[1738816927173,4.531,201.43,201.42,0.31888677]
[1738816934204,0.063,201.43,201.42,9.79021414]
[1738816934507,0.063,201.43,201.42,105.20206267]
[1738816936674,0.063,201.43,201.42,91.79021414]
[1738816940681,0.063,201.43,201.42,82.31888677]
[1738816941178,0.063,201.43,201.42,91.79021414]
[1738816944504,0.063,201.43,201.42,105.20206267]
[1738816945800,0.063,201.43,201.42,91.79021414]
[1738816948700,0.063,201.43,201.42,82.31888677]
[1738816948998,0.063,201.43,201.41,0.03]
[1738816950097,4.531,201.43,201.41,0.03]
[1738816953729,9.47132737,201.42,201.41,0.03]
[1738816956794,13.93952737,201.42,201.41,0.03]
[1738816957187,25.11012737,201.42,201.36,0.31888677]
[1738816957387,9.47132737,201.4,201.36,0.31888677]
[1738816958403,4.4689,201.39,201.36,0.31888677]
[1738816958706,13.94022737,201.39,201.36,0.31888677]
[1738816959601,13.94022737,201.39,201.34,0.31888677]
[1738816960023,9.47132737,201.36,201.32,0.31888677]
[1738816961006,4.4698,201.35,201.32,0.31888677]
[1738816961399,4.4698,201.35,201.3,0.31888677]
[1738816961599,4.4698,201.35,201.32,0.31888677]
[1738816961808,13.94112737,201.35,201.32,0.31888677]
[1738816962008,4.4698,201.35,201.34,0.31888677]
[1738816965792,4.4698,201.35,201.32,0.31888677]
[1738816966009,4.4698,201.35,201.34,0.31888677]
[1738816967415,9.47132737,201.36,201.32,0.31888677]
[1738816967918,9.47132737,201.35,201.32,0.31888677]
[1738816968126,9.47132737,201.35,201.34,0.31888677]
[1738816969323,13.94112737,201.35,201.34,0.31888677]
[1738816969813,4.4698,201.35,201.34,0.31888677]
[1738816971428,1.5954,201.35,201.28,9.82021414]
[1738816971633,20.64692737,201.33,201.31,0.31888677]
[1738816971915,20.64692737,201.33,201.29,0.31888677]
[1738816972118,9.47132737,201.32,201.29,0.31888677]
[1738816972517,4.4707,201.31,201.29,0.31888677]
[1738816975322,4.47,201.34,201.32,0.31888677]
[1738816978731,4.4696,201.36,201.32,0.31888677]
[1738816979729,4.4696,201.36,201.34,0.31888677]
[1738816981408,9.47132737,201.35,201.32,0.31888677]
[1738816983027,15.643,201.37,201.32,0.31888677]
[1738816983028,9.47132737,201.36,201.32,0.31888677]
[1738816983329,4.4698,201.35,201.34,0.31888677]
[1738816984431,4.4698,201.35,201.32,0.31888677]
[1738816984929,13.94112737,201.35,201.32,0.31888677]
[1738816987628,13.94112737,201.35,201.32,0.34888677]
[1738816988130,9.47132737,201.36,201.34,0.31888677]
[1738816989337,9.47132737,201.36,201.32,0.34888677]
[1738816989533,4.4698,201.35,201.32,0.34888677]
[1738816989711,13.94112737,201.35,201.32,0.34888677]
[1738816997643,9.47132737,201.34,201.32,0.03]
[1738816997856,9.47132737,201.33,201.32,0.03]
[1738816998642,9.47132737,201.34,201.32,0.03]
[1738816999146,4.4702,201.33,201.32,0.03]
[1738817000722,9.47132737,201.33,201.32,0.03]
[1738817001844,13.94152737,201.33,201.32,0.03]
[1738817002648,4.4702,201.33,201.32,0.03]
[1738817006826,4.4702,201.33,201.32,0.34888677]
[1738817007554,4.4696,201.36,201.34,0.31888677]
[1738817007848,12.27514449,201.38,201.36,8.677e-05]
[1738817008052,9.47132737,201.37,201.32,0.03]
[1738817008248,23.44804449,201.38,201.32,0.03]
[1738817009745,9.47132737,201.35,201.32,0.03]
[1738817010753,4.47,201.34,201.32,0.03]
[1738817011548,9.47132737,201.34,201.32,0.03]
[1738817012756,4.4702,201.33,201.32,0.03]
[1738817014452,13.94152737,201.33,201.32,0.03]
[1738817018356,4.4702,201.33,201.32,0.03]
[1738817021864,9.47132737,201.35,201.32,0.03]
[1738817022038,4.47,201.34,201.32,0.03]
[1738817022980,4.47,201.34,201.26,92.09151785]
[1738817023269,4.47,201.34,201.28,9.47132737]
[1738817023454,4.47,201.34,201.3,9.47132737]
[1738817024140,4.47,201.34,201.31,9.47132737]
[1738817025863,0.063,201.36,201.31,9.47132737]
[1738817026247,0.063,201.36,201.32,9.47132737]
[1738817027444,0.063,201.36,201.33,9.47132737]
[1738817028161,0.063,201.36,201.35,9.47132737]
[1738817030859,0.063,201.36,201.35,22.8831759]
[1738817031850,0.063,201.36,201.35,164.0207759]
[1738817034278,0.063,201.36,201.35,251.4891359]
[1738817034478,0.063,201.36,201.35,252.4891359]
[1738817043884,0.063,201.41,201.4,7.98546]
[1738817044187,0.063,201.41,201.4,248.21303042]
[1738817044483,0.063,201.41,201.4,247.4686359]
[1738817044675,0.063,201.43,201.42,1.37647]
[1738817044874,0.063,201.43,201.42,20.49736292]
[1738817045884,0.063,201.43,201.42,29.96869029]
[1738817046579,0.063,201.43,201.42,341.96869029]
[1738817046772,0.063,201.43,201.42,341.2243459]
[1738817046984,0.063,201.43,201.42,557.8243459]
[1738817047481,0.03,201.46,201.45,21.37647]
[1738817047679,0.03,201.46,201.45,263.1108625]
[1738817047871,0.03,201.46,201.45,262.3666459]
[1738817048686,0.03,201.46,201.45,263.4921359]
[1738817048892,0.063,201.5,201.49,33.78831853]
[1738817049079,0.063,201.5,201.49,178.60382441]
[1738817049275,0.063,201.5,201.49,177.8596459]
[1738817050084,0.063,201.5,201.49,220.70795538]
[1738817050271,0.063,201.5,201.49,302.83344538]
[1738817051492,0.063,201.5,201.49,264.9481359]
[1738817051694,0.063,201.5,201.49,259.7341559]
[1738817053290,13.62182737,201.59,201.49,259.7341559]
[1738817053493,9.47132737,201.58,201.52,9.47132737]
[1738817053680,9.47132737,201.56,201.49,226.07132737]
[1738817053881,9.47132737,201.53,201.49,82.0]
[1738817054079,9.47132737,201.52,201.46,134.6]
[1738817054398,9.47132737,201.51,201.46,134.6]
[1738817054985,9.47132737,201.51,201.44,9.47132737]
[1738817055190,9.47132737,201.5,201.44,9.47132737]
[1738817055388,9.47132737,201.51,201.44,9.47132737]
[1738817055574,4.4665,201.5,201.44,9.47132737]
[1738817057379,4.4665,201.5,201.42,9.47132737]
[1738817057380,9.47132737,201.49,201.42,9.47132737]
[1738817058100,13.93782737,201.5,201.43,9.47132737]
[1738817058494,9.47132737,201.49,201.42,9.47132737]
[1738817059605,9.47132737,201.48,201.41,9.47132737]
[1738817059789,9.47132737,201.47,201.4,9.47132737]
[1738817060295,9.47132737,201.46,201.39,9.47132737]